Workbook

Sheet ■仲介手数料計算
B2: ■仲介手数料計算 | E2: EDUPORT
B4: 売買価格 | C4: 2100000 | D4: =IF(C4="","",C4/10000) -> 210 | E4: 消 費 税 | F4: 0.08
B5: 加算額 | D5: =IF(C5="","",C5/10000) ->  | E5: 免税業者 | F5: 0.032
B6: 加算額（最大値） | C6: =IF(F12="","",IF(180000-F12<0,0,180000-F12)) -> 76000 | D6: =IF(C6="","",C6/10000) -> 7.6
B7: ※売買価格が400万円以下の場合の手数料加算額（税抜き価格）
B9: 価格幅 | C9: 200万円まで | D9: 200万円超～ 400万円まで | E9: 400万円超～ | F9: 合 計
B10: 料 率 | C10: 0.05 | D10: 0.04 | E10: 0.03
B11: 割 当 | C11: =IF(C4="","",IF(C4>=2000000,2000000,C4)) -> 2000000 | D11: =IF(C4="","",IF(C4>=4000000,2000000,IF(AND(C4>2000000,C4<=4000000),C4-2000000,0))) -> 100000 | E11: =IF(C4="","",IF(C4>4000000,C4-4000000,0)) -> 0 | F11: =IF(C4="","",SUM(C11:E11)) -> 2100000
B12: 手数料 | C12: =IF(C4="","",C10*C11) -> 100000 | D12: =IF(C4="","",D10*D11) -> 4000 | E12: =IF(C4="","",E10*E11) -> 0 | F12: =IF(C4="","",SUM(C12:E12)) -> 104000
B13: 消費税 | C13: =IF(C4="","",C12*$F$4) -> 8000 | D13: =IF(C4="","",D12*$F$4) -> 320 | E13: =IF(C4="","",E12*$F$4) -> 0 | F13: =IF(C4="","",F12*$F$4) -> 8320
B14: 仲介手数料（税込） | C14: =IF(C4="","",SUM(C12:C13)) -> 108000 | D14: =IF(C4="","",SUM(D12:D13)) -> 4320 | E14: =IF(C4="","",SUM(E12:E13)) -> 0 | F14: =IF(C4="","",SUM(F12:F13)) -> 112320
B15: 速算式 | C15: ※ 400万円超の場合、｛（売買代金×3％）＋6万円｝＋消費税 | F15: =IF(C4>4000000,((C4*3%)+60000)*(1+F4),"－") -> － | H15: =IF(F14=F15,"上と同じ","") -> 
B16: 仲介手数料（税込） | C16: ※ 400万円以下の場合の手数料加算額を含む | F16: =IF(F14="","－",IF((SUM(F12,C5))<=180000,SUM(F12,C5)+SUM(F12,C5)*F4,"－")) -> 112320
B18: ▽免税業者
B19: 消費税 | C19: =IF(C4="","",C12*$F$5) -> 3200 | D19: =IF(C4="","",D12*$F$5) -> 128 | E19: =IF(C4="","",E12*$F$5) -> 0 | F19: =IF(C4="","",F12*$F$5) -> 3328
B20: 仲介手数料（税込） | C20: =IF(C4="","",SUM(C12,C19)) -> 103200 | D20: =IF(C4="","",SUM(D12,D19)) -> 4128 | E20: =IF(C4="","",SUM(E12,E19)) -> 0 | F20: =IF(C4="","",SUM(F12,F19)) -> 107328
B21: 速算式 | C21: ※ 400万円超の場合、｛（売買代金×3％）＋6万円｝＋消費税（免業用） | F21: =IF(C4>4000000,((C4*3%)+60000)*(1+F5),"－") -> － | H21: =IF(F20=F21,"上と同じ","") -> 
B22: 仲介手数料（税込） | C22: ※ 400万円以下の場合の手数料加算額を含む | F22: =IF(F20="","－",IF((SUM(F12,C5))<=180000,SUM(F12,C5)+SUM(F12,C5)*F5,"－")) -> 107328
